[Event "69th RUS-ch Women Superfinal 2019"]
[Site "Izhevsk"]
[Date "2019.08.13"]
[Round "3.1"]
[White "Charochkina, Daria"]
[Black "Kashlinskaya, Alina"]
[Result "0-1"]
[ECO "A21"]
[WhiteElo "2338"]
[BlackElo "2492"]
[Annotator "ChessBase"]
[PlyCount "100"]
[EventDate "2019.08.10"]
[EventType "tourn"]
[EventCountry "RUS"]
[SourceTitle "playchess.com"]
[Source "ChessBase"]
[SourceQuality "1"]
[TimeControl "40/5400+30:1800+30"]

1. c4 {[%emt 0:00:00]} e5 {[%emt 0:00:00]} 2. Nc3 {[%emt 0:00:00]} Bb4 {[%emt 0:00:00]} 3. Nd5 {[%emt 0:00:00]} Be7 {[%emt 0:00:06]} 4. d4 {[%emt 0:00:55]} exd4 {[%emt 0:00:24]} 5. Qxd4 {[%emt 0:00:41]} Nf6 {[%emt 0:00:12]} 6. Nf3 {[%emt 0:20:02]} Nxd5 {[%emt 0:10:00]} 7. cxd5 {[%emt 0:00:37]} O-O {[%emt 0:00:09]} 8. e4 {[%emt 0:15:24]} d6 {[%emt 0:01:23]} 9. Bd3 {[%emt 0:01:10]} c5 {[%emt 0:22:13]} 10. Qe3 {[%emt 0:08:40]} Bf6 {[%emt 0:03:06]} 11. Qf4 {[%emt 0:03:55]} b5 {[%emt 0:13:51]} 12. O-O {[%emt 0:02:32]} c4 {[%emt 0:00:23]} 13. Bc2 {[%emt 0:00:59]} Na6 {[%emt 0:00:49]} 14. a4 {[%emt 0:02:04]} b4 {[%emt 0:02:31]} 15. e5 {[%emt 0:00:25]} dxe5 {[%emt 0:00:14]} 16. Qxc4 {[%emt 0:00:38]} Bb7 {[%emt 0:00:35]} 17. Rd1 {[%emt 0:01:14]} Rc8 {[%emt 0:03:08]} 18. Qe4 {[%emt 0:01:00]} g6 {[%emt 0:00:09]} 19. Bh6 {[%emt 0:05:07]} Re8 {[%emt 0:00:31]} 20. Rac1 {[%emt 0:06:07]} Nc5 {[%emt 0:20:08]} 21. Qxb4 {[%emt 0:00:50]} e4 {[%emt 0:01:06]} 22. Ne1 {[%emt 0:04:00]} a5 {[%emt 0:01:47]} 23. Qa3 {[%emt 0:01:59]} Bxd5 {[%emt 0:03:39]} 24. Bb1 {[%emt 0:02:29]} Nd3 {[%emt 0:01:01]} 25. Nxd3 {[%emt 0:02:04]} exd3 {[%emt 0:00:01]} 26. Qxd3 {[%emt 0:01:06]} Rxc1 {[%emt 0:01:11]} 27. Bxc1 {[%emt 0:00:11]} Qa8 {[%emt 0:00:33]} 28. Qg3 {[%emt 0:06:07]} Qb7 {[%emt 0:01:40]} 29. h3 {[%emt 0:05:38]} Bb3 {[%emt 0:02:09]} 30. Rf1 {[%emt 0:00:23]} Bc4 {[%emt 0:02:56]} 31. Bd3 {[%emt 0:01:12]} Be5 {[%emt 0:02:58]} 32. f4 {[%emt 0:00:22]} Bd4+ {[%emt 0:00:10]} 33. Kh2 {[%emt 0:00:06]} Bd5 {[%emt 0:01:49]} 34. f5 {[%emt 0:01:06]} Be4 {[%emt 0:04:23]} 35. Bb5 {[%emt 0:02:13]} Rc8 {[%emt 0:00:09]} 36. fxg6 {[%emt 0:02:00]} hxg6 {[%emt 0:00:15]} 37. Bd3 {[%emt 0:02:18]} Rxc1 {[%emt 0:01:54]} 38. Rxc1 {[%emt 0:01:43]} Qxb2 {[%emt 0:00:02]} 39. Rc8+ {[%emt 0:01:13]} Kg7 {[%emt 0:00:01]} 40. Bxe4 {[%emt 0:00:00]} Be5 {[%emt 0:00:00]} 41. Bf3 {[%emt 0:26:59]} Bxg3+ {[%emt 0:01:12]} 42. Kxg3 {[%emt 0:00:04]} Qb3 {[%emt 0:00:18]} 43. Ra8 {[%emt 0:00:22]} Qxa4 {[%emt 0:00:36]} 44. h4 {[%emt 0:02:08]} Qb5 {[%emt 0:04:10]} 45. Kh3 {[%emt 0:01:53]} a4 {[%emt 0:00:50]} 46. Ra7 {[%emt 0:00:24]} Qb3 {[%emt 0:00:26]} 47. h5 {[%emt 0:01:41]} gxh5 {[%emt 0:01:31]} 48. Kh4 {[%emt 0:00:03]} Qb4+ {[%emt 0:02:14]} 49. Kh3 {[%emt 0:00:06]} h4 {[%emt 0:00:44]} 50. Bh5 {[%emt 0:01:58]} Qf4 {[%emt 0:01:03]} 0-1

[Event "69th RUS-ch Women Superfinal 2019"]
[Site "Izhevsk"]
[Date "2019.08.13"]
[Round "3.2"]
[White "Shuvalova, Polina"]
[Black "Girya, Olga"]
[Result "0-1"]
[ECO "B13"]
[WhiteElo "2418"]
[BlackElo "2457"]
[Annotator "ChessBase"]
[PlyCount "56"]
[EventDate "2019.08.10"]
[EventType "tourn"]
[EventCountry "RUS"]
[SourceTitle "playchess.com"]
[Source "ChessBase"]
[SourceQuality "1"]
[TimeControl "40/5400+30:1800+30"]

1. e4 {[%emt 0:00:00]} c6 {[%emt 0:00:00]} 2. d4 {[%emt 0:00:00]} d5 {[%emt 0:00:00]} 3. exd5 {[%emt 0:00:00]} cxd5 {[%emt 0:00:00]} 4. Bd3 {[%emt 0:00:00]} Nc6 {[%emt 0:00:00]} 5. c3 {[%emt 0:00:00]} Nf6 {[%emt 0:00:09]} 6. h3 {[%emt 0:00:15]} g6 {[%emt 0:00:20]} 7. Bf4 {[%emt 0:00:24]} Bf5 {[%emt 0:01:03]} 8. Be2 {[%emt 0:00:03]} e6 {[%emt 0:01:11]} 9. Nd2 {[%emt 0:02:30]} h5 {[%emt 0:00:31]} 10. Qb3 {[%emt 0:07:36]} Bd6 {[%emt 0:04:30]} 11. Qxb7 {[%emt 0:14:58]} Bxf4 {[%emt 0:01:30]} 12. Qxc6+ {[%emt 0:00:18]} Kf8 {[%emt 0:00:25]} 13. Ngf3 {[%emt 0:01:10]} Kg7 {[%emt 0:17:57]} 14. Nb3 {[%emt 0:03:53]} Rb8 {[%emt 0:06:51]} 15. O-O {[%emt 0:10:48]} Ne4 {[%emt 0:10:11]} 16. Rad1 {[%emt 0:14:24]} Ng5 {[%emt 0:07:08]} 17. g3 {[%emt 0:11:14]} Nxh3+ {[%emt 0:05:01]} 18. Kg2 {[%emt 0:03:51]} h4 {[%emt 0:01:21]} 19. Rh1 {[%emt 0:01:20]} hxg3 {[%emt 0:06:46]} 20. fxg3 {[%emt 0:00:32]} Rc8 {[%emt 0:09:23]} 21. Qa6 {[%emt 0:01:31]} Qc7 {[%emt 0:01:45]} 22. Nh4 {[%emt 0:20:41]} Be4+ {[%emt 0:03:19]} 23. Bf3 {[%emt 0:00:22]} Bxg3 {[%emt 0:01:21]} 24. Rxh3 {[%emt 0:02:42]} Rxh4 {[%emt 0:03:20]} 25. Bxe4 {[%emt 0:03:11]} Rxh3 {[%emt 0:00:34]} 26. Kxh3 {[%emt 0:00:24]} Rh8+ {[%emt 0:00:07]} 27. Kg2 {[%emt 0:00:02]} Rh2+ {[%emt 0:00:22]} 28. Kg1 {[%emt 0:00:02]} Qf4 {[%emt 0:01:06]} 0-1

[Event "69th RUS-ch Women Superfinal 2019"]
[Site "Izhevsk"]
[Date "2019.08.13"]
[Round "3.3"]
[White "Kosteniuk, Alexandra"]
[Black "Potapova, Margarita"]
[Result "0-1"]
[ECO "B95"]
[WhiteElo "2517"]
[BlackElo "2292"]
[Annotator "ChessBase"]
[PlyCount "82"]
[EventDate "2019.08.10"]
[EventType "tourn"]
[EventCountry "RUS"]
[SourceTitle "playchess.com"]
[Source "ChessBase"]
[SourceQuality "1"]
[TimeControl "40/5400+30:1800+30"]

1. e4 {[%emt 0:00:00]} c5 {[%emt 0:00:00]} 2. Nf3 {[%emt 0:00:00]} d6 {[%emt 0:00:00]} 3. d4 {[%emt 0:00:00]} cxd4 {[%emt 0:00:00]} 4. Nxd4 {[%emt 0:00:00]} Nf6 {[%emt 0:00:00]} 5. Nc3 {[%emt 0:00:00]} a6 {[%emt 0:00:01]} 6. Bg5 {[%emt 0:00:09]} e6 {[%emt 0:00:14]} 7. Qf3 {[%emt 0:00:10]} Be7 {[%emt 0:02:39]} 8. Be2 {[%emt 0:00:18]} Nbd7 {[%emt 0:05:31]} 9. O-O {[%emt 0:00:51]} Qc7 {[%emt 0:04:03]} 10. a4 {[%emt 0:00:17]} h6 {[%emt 0:08:04]} 11. Be3 {[%emt 0:06:09]} g5 {[%emt 0:17:20]} 12. Qh3 {[%emt 0:08:23]} Ne5 {[%emt 0:16:37]} 13. Bxg5 {[%emt 0:03:27]} Bd7 {[%emt 0:00:36]} 14. Be3 {[%emt 0:04:39]} h5 {[%emt 0:04:01]} 15. Nb3 {[%emt 0:06:20]} O-O-O {[%emt 0:03:30]} 16. Nb5 {[%emt 0:10:07]} axb5 {[%emt 0:04:12]} 17. axb5 {[%emt 0:00:02]} Be8 {[%emt 0:17:24]} 18. Ra8+ {[%emt 0:01:23]} Kd7 {[%emt 0:00:13]} 19. b6 {[%emt 0:00:39]} Qc6 {[%emt 0:02:16]} 20. Ra7 {[%emt 0:23:29]} Rb8 {[%emt 0:03:59]} 21. Bd4 {[%emt 0:00:18]} Qxe4 {[%emt 0:05:00]} 22. Ba6 {[%emt 0:12:22]} Kd8 {[%emt 0:00:44]} 23. Bxe5 {[%emt 0:05:28]} bxa6 {[%emt 0:01:56]} 24. Nc5 {[%emt 0:03:50]} Qxe5 {[%emt 0:00:38]} 25. Nxa6 {[%emt 0:02:16]} Rxb6 {[%emt 0:00:15]} 26. Ra8+ {[%emt 0:00:15]} Kd7 {[%emt 0:00:04]} 27. Qa3 {[%emt 0:03:54]} Qb5 {[%emt 0:02:45]} 28. Qc3 {[%emt 0:01:06]} Qc6 {[%emt 0:00:39]} 29. Qa5 {[%emt 0:01:39]} Nd5 {[%emt 0:00:48]} 30. Nb8+ {[%emt 0:01:07]} Rxb8 {[%emt 0:00:06]} 31. Rxb8 {[%emt 0:00:03]} Nc7 {[%emt 0:00:41]} 32. Rb6 {[%emt 0:03:00]} Qa8 {[%emt 0:00:07]} 33. Qb4 {[%emt 0:00:12]} Rg8 {[%emt 0:00:33]} 34. f3 {[%emt 0:00:50]} Rg5 {[%emt 0:00:14]} 35. Rd1 {[%emt 0:02:14]} Qxf3 {[%emt 0:01:26]} 36. Rbxd6+ {[%emt 0:02:01]} Bxd6 {[%emt 0:00:13]} 37. Rxd6+ {[%emt 0:00:20]} Kc8 {[%emt 0:00:06]} 38. Qd2 {[%emt 0:00:04]} Qf6 {[%emt 0:00:34]} 39. c4 {[%emt 0:00:14]} Rf5 {[%emt 0:00:20]} 40. Qd1 {[%emt 0:00:00]} h4 {[%emt 0:00:00]} 41. h3 {[%emt 0:01:19]} Qxb2 {[%emt 0:03:25]} 0-1

[Event "69th RUS-ch Women Superfinal 2019"]
[Site "Izhevsk"]
[Date "2019.08.13"]
[Round "3.4"]
[White "Pogonina, Natalija"]
[Black "Bodnaruk, Anastasia"]
[Result "1-0"]
[ECO "A48"]
[WhiteElo "2457"]
[BlackElo "2440"]
[Annotator "ChessBase"]
[PlyCount "111"]
[EventDate "2019.08.10"]
[EventType "tourn"]
[EventCountry "RUS"]
[SourceTitle "playchess.com"]
[Source "ChessBase"]
[SourceQuality "1"]
[TimeControl "40/5400+30:1800+30"]

1. d4 {[%emt 0:00:00]} Nf6 {[%emt 0:00:00]} 2. Nf3 {[%emt 0:00:00]} g6 {[%emt 0:00:00]} 3. b3 {[%emt 0:00:00]} Bg7 {[%emt 0:00:07]} 4. Bb2 {[%emt 0:00:04]} O-O {[%emt 0:01:08]} 5. e3 {[%emt 0:00:16]} c5 {[%emt 0:03:25]} 6. dxc5 {[%emt 0:00:23]} Qc7 {[%emt 0:00:36]} 7. Nbd2 {[%emt 0:03:31]} Qxc5 {[%emt 0:01:40]} 8. c4 {[%emt 0:00:17]} d6 {[%emt 0:02:33]} 9. Be2 {[%emt 0:01:22]} b6 {[%emt 0:02:48]} 10. O-O {[%emt 0:02:24]} Bb7 {[%emt 0:00:31]} 11. Rc1 {[%emt 0:02:21]} Nbd7 {[%emt 0:14:34]} 12. Nb1 {[%emt 0:05:11]} Ne4 {[%emt 0:02:36]} 13. Bxg7 {[%emt 0:12:16]} Kxg7 {[%emt 0:00:04]} 14. Qc2 {[%emt 0:00:23]} Ndf6 {[%emt 0:06:37]} 15. Nc3 {[%emt 0:01:31]} Rac8 {[%emt 0:05:10]} 16. Nxe4 {[%emt 0:05:32]} Nxe4 {[%emt 0:08:26]} 17. Rfd1 {[%emt 0:04:38]} e5 {[%emt 0:06:27]} 18. Nd2 {[%emt 0:11:20]} Nf6 {[%emt 0:02:43]} 19. Bf3 {[%emt 0:02:09]} Bxf3 {[%emt 0:04:40]} 20. Nxf3 {[%emt 0:00:18]} b5 {[%emt 0:10:11]} 21. Qd2 {[%emt 0:14:34]} Ne4 {[%emt 0:01:10]} 22. Qd3 {[%emt 0:00:15]} f5 {[%emt 0:00:56]} 23. Nd2 {[%emt 0:01:39]} Nf6 {[%emt 0:04:10]} 24. b4 {[%emt 0:11:42]} Qxb4 {[%emt 0:04:30]} 25. cxb5 {[%emt 0:00:08]} d5 {[%emt 0:02:42]} 26. h3 {[%emt 0:02:20]} Rfd8 {[%emt 0:04:37]} 27. Nb3 {[%emt 0:02:04]} Rxc1 {[%emt 0:06:27]} 28. Rxc1 {[%emt 0:00:15]} Rd7 {[%emt 0:00:21]} 29. Qc3 {[%emt 0:06:41]} Qd6 {[%emt 0:03:22]} 30. Qc5 {[%emt 0:02:41]} Ne4 {[%emt 0:01:52]} 31. Qxd6 {[%emt 0:02:19]} Nxd6 {[%emt 0:00:01]} 32. Nc5 {[%emt 0:00:33]} Re7 {[%emt 0:00:12]} 33. a4 {[%emt 0:00:25]} Nb7 {[%emt 0:01:19]} 34. Nxb7 {[%emt 0:06:06]} Rxb7 {[%emt 0:00:01]} 35. Rc6 {[%emt 0:00:11]} Rd7 {[%emt 0:00:34]} 36. Kf1 {[%emt 0:00:40]} Kf7 {[%emt 0:00:51]} 37. Ke2 {[%emt 0:00:41]} Ke7 {[%emt 0:00:32]} 38. Ra6 {[%emt 0:00:42]} e4 {[%emt 0:00:35]} 39. h4 {[%emt 0:00:39]} Rc7 {[%emt 0:00:27]} 40. Kd2 {[%emt 0:00:00]} Kd7 {[%emt 0:00:00]} 41. h5 {[%emt 0:10:26]} gxh5 {[%emt 0:08:03]} 42. Rf6 {[%emt 0:05:39]} Kc8 {[%emt 0:09:11]} 43. Rxf5 {[%emt 0:06:31]} h4 {[%emt 0:09:35]} 44. Rxd5 {[%emt 0:02:42]} Rg7 {[%emt 0:00:07]} 45. Rh5 {[%emt 0:02:12]} Rxg2 {[%emt 0:00:15]} 46. Ke2 {[%emt 0:00:10]} Rg7 {[%emt 0:05:00]} 47. Rxh4 {[%emt 0:02:11]} Re7 {[%emt 0:00:03]} 48. Kd2 {[%emt 0:00:30]} Kc7 {[%emt 0:01:23]} 49. Rh6 {[%emt 0:01:25]} Rf7 {[%emt 0:01:08]} 50. Kc3 {[%emt 0:00:23]} Rd7 {[%emt 0:00:47]} 51. Kc4 {[%emt 0:01:07]} Rf7 {[%emt 0:00:29]} 52. Kd5 {[%emt 0:01:31]} Rxf2 {[%emt 0:00:07]} 53. Rxh7+ {[%emt 0:00:08]} Kb6 {[%emt 0:00:03]} 54. Rh6+ {[%emt 0:00:12]} Kb7 {[%emt 0:00:29]} 55. Kxe4 {[%emt 0:00:39]} Ra2 {[%emt 0:00:03]} 56. Ra6 {[%emt 0:00:12]} 1-0

[Event "69th RUS-ch Women Superfinal 2019"]
[Site "Izhevsk"]
[Date "2019.08.13"]
[Round "3.5"]
[White "Gunina, Valentina"]
[Black "Goryachkina, Aleksandra"]
[Result "1/2-1/2"]
[ECO "D10"]
[WhiteElo "2497"]
[BlackElo "2564"]
[Annotator "ChessBase"]
[PlyCount "80"]
[EventDate "2019.08.10"]
[EventType "tourn"]
[EventCountry "RUS"]
[SourceTitle "playchess.com"]
[Source "ChessBase"]
[SourceQuality "1"]
[TimeControl "40/5400+30:1800+30"]

1. d4 {[%emt 0:00:00]} d5 {[%emt 0:00:00]} 2. c4 {[%emt 0:00:00]} c6 {[%emt 0:00:00]} 3. Nc3 {[%emt 0:00:00]} Nf6 {[%emt 0:00:00]} 4. e3 {[%emt 0:00:09]} g6 {[%emt 0:02:15]} 5. Nf3 {[%emt 0:02:44]} Bg7 {[%emt 0:00:10]} 6. Be2 {[%emt 0:00:49]} O-O {[%emt 0:00:44]} 7. O-O {[%emt 0:00:08]} dxc4 {[%emt 0:02:14]} 8. Bxc4 {[%emt 0:01:18]} Bg4 {[%emt 0:00:50]} 9. h3 {[%emt 0:09:32]} Bxf3 {[%emt 0:00:08]} 10. Qxf3 {[%emt 0:00:05]} Nbd7 {[%emt 0:00:11]} 11. Rd1 {[%emt 0:00:28]} e5 {[%emt 0:04:03]} 12. d5 {[%emt 0:04:47]} e4 {[%emt 0:01:05]} 13. Nxe4 {[%emt 0:08:07]} Nxe4 {[%emt 0:00:22]} 14. Qxe4 {[%emt 0:00:15]} Nb6 {[%emt 0:00:21]} 15. Bb3 {[%emt 0:03:14]} cxd5 {[%emt 0:00:51]} 16. Bxd5 {[%emt 0:03:28]} Nxd5 {[%emt 0:00:06]} 17. Rxd5 {[%emt 0:00:25]} Qb6 {[%emt 0:00:41]} 18. Qf3 {[%emt 0:20:20]} Rac8 {[%emt 0:03:40]} 19. e4 {[%emt 0:03:23]} Bxb2 {[%emt 0:22:19]} 20. Be3 {[%emt 0:03:31]} Qa6 {[%emt 0:07:42]} 21. Rad1 {[%emt 0:04:26]} Bg7 {[%emt 0:11:01]} 22. Bc5 {[%emt 0:11:18]} Rfe8 {[%emt 0:02:02]} 23. Qb3 {[%emt 0:02:20]} Qe6 {[%emt 0:05:50]} 24. Bxa7 {[%emt 0:02:37]} Qxe4 {[%emt 0:03:15]} 25. Qxb7 {[%emt 0:00:28]} Qa4 {[%emt 0:04:37]} 26. Kh2 {[%emt 0:15:32]} Qxa2 {[%emt 0:03:51]} 27. Re1 {[%emt 0:03:27]} Qc4 {[%emt 0:03:50]} 28. Rxe8+ {[%emt 0:00:23]} Rxe8 {[%emt 0:00:01]} 29. Be3 {[%emt 0:00:38]} h5 {[%emt 0:04:56]} 30. Qd7 {[%emt 0:00:35]} Qe4 {[%emt 0:02:59]} 31. Bd4 {[%emt 0:00:32]} Bh6 {[%emt 0:06:59]} 32. Bc3 {[%emt 0:00:01]} Bg7 {[%emt 0:03:14]} 33. Bd4 {[%emt 0:00:54]} Bxd4 {[%emt 0:03:50]} 34. Rxd4 {[%emt 0:00:01]} Qe6 {[%emt 0:00:08]} 35. Qxe6 {[%emt 0:00:06]} Rxe6 {[%emt 0:00:04]} 36. Kg3 {[%emt 0:00:05]} Kg7 {[%emt 0:00:05]} 37. h4 {[%emt 0:00:21]} Rb6 {[%emt 0:00:07]} 38. f3 {[%emt 0:00:07]} Rb2 {[%emt 0:00:05]} 39. Ra4 {[%emt 0:00:05]} Kf6 {[%emt 0:00:04]} 40. Ra6+ {[%emt 0:00:00]} Kg7 {[%emt 0:00:00]} 1/2-1/2

[Event "69th RUS-ch Women Superfinal 2019"]
[Site "Izhevsk"]
[Date "2019.08.13"]
[Round "3.6"]
[White "Shafigullina, Zarina"]
[Black "Tomilova, Elena"]
[Result "1-0"]
[ECO "A01"]
[WhiteElo "2246"]
[BlackElo "2281"]
[Annotator "NA"]
[PlyCount "71"]
[EventDate "2019.08.10"]
[EventType "tourn"]
[EventCountry "RUS"]
[SourceTitle "playchess.com"]
[Source "ChessBase"]
[SourceQuality "1"]
[TimeControl "40/5400+30:1800+30"]

1. b3 {[%emt 0:00:00]} d5 {[%emt 0:00:14]} 2. Bb2 {[%emt 0:00:00]} Bg4 {[%emt 0:02:03]} 3. Nf3 {[%emt 0:00:00]} Bxf3 {[%emt 0:00:38]} 4. exf3 {[%emt 0:00:04]} e6 {[%emt 0:00:17]} 5. g3 {[%emt 0:01:35]} Nf6 {[%emt 0:00:13]} 6. Bg2 {[%emt 0:00:06]} g6 {[%emt 0:01:29]} 7. Qe2 {[%emt 0:01:52]} c6 {[%emt 0:04:13]} 8. d3 {[%emt 0:15:39]} Bg7 {[%emt 0:00:34]} 9. Nd2 {[%emt 0:00:16]} O-O {[%emt 0:04:08]} 10. f4 {[%emt 0:01:47]} c5 {[%emt 0:01:57]} 11. c4 {[%emt 0:05:52]} Nc6 {[%emt 0:01:56]} 12. Nf3 {[%emt 0:03:46]} Qa5+ {[%emt 0:03:47]} 13. Kf1 {[%emt 0:01:46]} d4 {[%emt 0:16:00]} 14. Ne5 {[%emt 0:14:07]} Nxe5 {[%emt 0:06:24]} 15. fxe5 {[%emt 0:00:38]} Nd7 {[%emt 0:00:19]} 16. f4 {[%emt 0:02:07]} Rab8 {[%emt 0:07:28]} 17. Be4 {[%emt 0:01:18]} f6 {[%emt 0:03:46]} 18. exf6 {[%emt 0:00:06]} Nxf6 {[%emt 0:00:49]} 19. Bf3 {[%emt 0:01:26]} e5 {[%emt 0:01:49]} 20. fxe5 {[%emt 0:07:05]} Ng4 {[%emt 0:01:34]} 21. Kg1 {[%emt 0:00:17]} Nxe5 {[%emt 0:02:02]} 22. Be4 {[%emt 0:03:26]} h5 {[%emt 0:11:45]} 23. h3 {[%emt 0:00:22]} Bh6 {[%emt 0:02:24]} 24. Bc1 {[%emt 0:05:15]} Qc3 {[%emt 0:07:12]} 25. Bxh6 {[%emt 0:00:30]} Qxa1+ {[%emt 0:01:14]} 26. Kh2 {[%emt 0:06:14]} Qc3 {[%emt 0:00:31]} 27. Bxf8 {[%emt 0:07:50]} Kxf8 {[%emt 0:02:07]} 28. Rf1+ {[%emt 0:01:20]} Kg7 {[%emt 0:00:15]} 29. Qf2 {[%emt 0:03:56]} Re8 {[%emt 0:00:50]} 30. Qf6+ {[%emt 0:00:27]} Kh6 {[%emt 0:00:16]} 31. Qf4+ {[%emt 0:00:54]} Kg7 {[%emt 0:00:48]} 32. g4 {[%emt 0:04:26]} hxg4 {[%emt 0:02:17]} 33. hxg4 {[%emt 0:01:42]} Qc2+ {[%emt 0:00:37]} 34. Kg3 {[%emt 0:00:37]} Qe2 {[%emt 0:05:30]} 35. Qf6+ {[%emt 0:00:16]} Kg8 {[%emt 0:00:05]} 36. Bd5+ {[%emt 0:00:11]} 1-0

[Event "69th RUS-ch Women Superfinal 2019"]
[Site "Izhevsk"]
[Date "2019.08.14"]
[Round "4.1"]
[White "Goryachkina, Aleksandra"]
[Black "Shafigullina, Zarina"]
[Result "1-0"]
[ECO "C42"]
[WhiteElo "2564"]
[BlackElo "2246"]
[Annotator "ChessBase"]
[PlyCount "117"]
[EventDate "2019.08.10"]
[EventType "tourn"]
[EventCountry "RUS"]
[SourceTitle "playchess.com"]
[Source "ChessBase"]
[SourceQuality "1"]
[TimeControl "40/5400+30:1800+30"]

1. e4 {[%emt 0:00:00]} e5 {[%emt 0:00:02]} 2. Nf3 {[%emt 0:00:00]} Nf6 {[%emt 0:00:07]} 3. Nxe5 {[%emt 0:04:02]} d6 {[%emt 0:01:35]} 4. Nf3 {[%emt 0:00:36]} Nxe4 {[%emt 0:00:18]} 5. Nc3 {[%emt 0:00:59]} Nf6 {[%emt 0:00:40]} 6. d4 {[%emt 0:02:14]} Bf5 {[%emt 0:04:08]} 7. Bd3 {[%emt 0:08:27]} Bg6 {[%emt 0:02:17]} 8. O-O {[%emt 0:01:27]} Be7 {[%emt 0:00:31]} 9. Re1 {[%emt 0:02:42]} O-O {[%emt 0:00:53]} 10. Bg5 {[%emt 0:00:39]} Nbd7 {[%emt 0:04:52]} 11. Nh4 {[%emt 0:04:17]} Bxd3 {[%emt 0:15:31]} 12. Qxd3 {[%emt 0:00:12]} Nd5 {[%emt 0:00:28]} 13. Nxd5 {[%emt 0:07:21]} Bxg5 {[%emt 0:00:07]} 14. Nf5 {[%emt 0:00:22]} c6 {[%emt 0:09:52]} 15. f4 {[%emt 0:13:44]} Bf6 {[%emt 0:05:43]} 16. Nxf6+ {[%emt 0:04:49]} Nxf6 {[%emt 0:03:09]} 17. Qg3 {[%emt 0:02:23]} g6 {[%emt 0:00:33]} 18. Qg5 {[%emt 0:00:49]} d5 {[%emt 0:09:44]} 19. Ng3 {[%emt 0:08:59]} Kg7 {[%emt 0:10:24]} 20. Re7 {[%emt 0:02:44]} Qc8 {[%emt 0:07:16]} 21. Rae1 {[%emt 0:03:19]} h6 {[%emt 0:01:37]} 22. Qe5 {[%emt 0:00:33]} Re8 {[%emt 0:01:05]} 23. f5 {[%emt 0:01:56]} Rxe7 {[%emt 0:06:38]} 24. Qxe7 {[%emt 0:00:16]} Ng8 {[%emt 0:01:36]} 25. Qe5+ {[%emt 0:01:59]} Kh7 {[%emt 0:09:59]} 26. Qd6 {[%emt 0:08:37]} Qd8 {[%emt 0:01:16]} 27. fxg6+ {[%emt 0:00:39]} fxg6 {[%emt 0:00:06]} 28. Qe6 {[%emt 0:00:06]} Kg7 {[%emt 0:00:55]} 29. Rf1 {[%emt 0:08:02]} Qe7 {[%emt 0:01:44]} 30. Qg4 {[%emt 0:00:01]} Kh7 {[%emt 0:00:44]} 31. h4 {[%emt 0:00:03]} Rf8 {[%emt 0:00:37]} 32. Rxf8 {[%emt 0:01:15]} Qxf8 {[%emt 0:00:02]} 33. h5 {[%emt 0:00:06]} Qe8 {[%emt 0:00:27]} 34. Kh2 {[%emt 0:07:44]} Nf6 {[%emt 0:00:52]} 35. Qf4 {[%emt 0:00:28]} Nxh5 {[%emt 0:00:55]} 36. Nxh5 {[%emt 0:01:01]} gxh5 {[%emt 0:00:06]} 37. Qc7+ {[%emt 0:00:02]} Kg8 {[%emt 0:00:47]} 38. Qxb7 {[%emt 0:00:02]} Qd8 {[%emt 0:00:45]} 39. Kg1 {[%emt 0:00:24]} Qe8 {[%emt 0:00:12]} 40. Kf1 {[%emt 0:00:00]} Qf8+ {[%emt 0:00:00]} 41. Ke2 {[%emt 0:05:01]} Qe8+ {[%emt 0:04:19]} 42. Kd1 {[%emt 0:01:54]} a5 {[%emt 0:05:38]} 43. Qc7 {[%emt 0:02:31]} Qe4 {[%emt 0:09:55]} 44. Qg3+ {[%emt 0:01:59]} Kf7 {[%emt 0:06:00]} 45. Qf3+ {[%emt 0:04:24]} Qxf3+ {[%emt 0:00:19]} 46. gxf3 {[%emt 0:00:01]} a4 {[%emt 0:00:18]} 47. Ke2 {[%emt 0:04:46]} Ke6 {[%emt 0:00:14]} 48. Kf2 {[%emt 0:01:10]} h4 {[%emt 0:02:41]} 49. b3 {[%emt 0:05:13]} a3 {[%emt 0:05:43]} 50. c4 {[%emt 0:01:38]} c5 {[%emt 0:00:37]} 51. cxd5+ {[%emt 0:01:28]} Kxd5 {[%emt 0:00:05]} 52. dxc5 {[%emt 0:00:04]} Kxc5 {[%emt 0:00:10]} 53. f4 {[%emt 0:00:44]} Kd4 {[%emt 0:01:00]} 54. b4 {[%emt 0:01:09]} Kc3 {[%emt 0:00:56]} 55. b5 {[%emt 0:00:34]} Kb2 {[%emt 0:00:13]} 56. b6 {[%emt 0:00:05]} Kxa2 {[%emt 0:00:06]} 57. b7 {[%emt 0:00:04]} Ka1 {[%emt 0:00:08]} 58. b8=Q {[%emt 0:00:17]} h3 {[%emt 0:00:09]} 59. f5 {[%emt 0:00:15]} 1-0